[Event "44th Chess Olympiad Open 2022"]
[Site "Chennai"]
[Date "2022.07.31"]
[Round "3.31"]
[White "Arunnuntapanich, Tinnakrit"]
[Black "Maerevoet, Sim"]
[Result "0-1"]
[WhiteElo "2117"]
[BlackElo "2409"]
[Annotator "RC"]
[PlyCount "96"]
[EventDate "2022.??.??"]
[TimeControl "60"]

1. d4 {[%emt 0:00:02]} d5 {[%emt 0:00:09]} 2. c4 {[%emt 0:00:08]} e6 {[%emt 0:
00:00]} 3. Nc3 {[%emt 0:00:07]} c6 {[%emt 0:00:07]} 4. e3 {[%emt 0:01:34]} Nf6
{[%emt 0:00:24]} 5. Nf3 {[%emt 0:00:08]} Nbd7 {[%emt 0:00:18]} 6. a3 {[%emt 0:
00:00]} Bd6 {[%emt 0:04:30]} 7. Be2 {[%emt 0:02:15]} O-O {[%emt 0:01:28]} 8.
O-O {[%emt 0:00:08]} dxc4 {[%emt 0:13:44]} 9. Bxc4 {[%emt 0:01:53]} b5 {
[%emt 0:00:18]} 10. Bd3 {[%emt 0:02:25]} Bb7 {[%emt 0:06:01]} 11. e4 {[%emt 0:
00:00]} e5 {[%emt 0:00:33]} 12. Bg5 {[%emt 0:03:17]} h6 {[%emt 0:03:14]} 13.
Bh4 {[%emt 0:01:03]} Re8 {[%emt 0:01:07]} 14. Re1 {[%emt 0:05:06]} a6 {[%emt 0:
00:00]} 15. Bc2 {[%emt 0:02:16]} Bc7 {[%emt 0:09:05]} 16. Bg3 {[%emt 0:09:46]}
exd4 {[%emt 0:03:46]} 17. Nxd4 {[%emt 0:04:05]} Bxg3 {[%emt 0:02:31]} 18. hxg3
{[%emt 0:00:16]} Ne5 {[%emt 0:03:26]} 19. Nf5 {[%emt 0:00:39]} Qb6 {[%emt 0:00:
00]} 20. Qe2 {[%emt 0:03:03]} Rad8 {[%emt 0:05:32]} 21. Rad1 {[%emt 0:00:15]}
c5 {[%emt 0:11:09]} 22. Rxd8 {[%emt 0:01:21]} Rxd8 {[%emt 0:03:27]} 23. Rd1 {
[%emt 0:13:16]} g6 {[%emt 0:05:18]} 24. Ne3 {[%emt 0:03:51]} c4 {[%emt 0:01:57]
} 25. Ned5 {[%emt 0:01:30]} Bxd5 {[%emt 0:00:29]} 26. Nxd5 {[%emt 0:00:16]}
Nxd5 {[%emt 0:00:06]} 27. exd5 {[%emt 0:00:19]} Qd6 {[%emt 0:01:52]} 28. Qe4 {
[%emt 0:03:37]} Kg7 {[%emt 0:02:05]} 29. Qd4 {[%emt 0:00:14]} Kh7 {[%emt 0:00:
00]} 30. Be4 {[%emt 0:00:06]} Nd7 {[%emt 0:00:17]} 31. Qa7 {[%emt 0:00:30]} Kg7
{[%emt 0:00:25]} 32. Bf3 {[%emt 0:00:45]} Nc5 {[%emt 0:02:48]} 33. Re1 {
[%emt 0:00:13]} Kf8 {[%emt 0:00:25]} 34. Re2 {[%emt 0:00:33]} h5 {[%emt 0:00:
00]} 35. Kf1 {[%emt 0:00:37]} Re8 {[%emt 0:01:01]} 36. Rxe8+ {[%emt 0:00:22]}
Kxe8 {[%emt 0:00:02]} 37. Qa8+ {[%emt 0:00:10]} Ke7 {[%emt 0:00:07]} 38. Qa7+ {
[%emt 0:00:08]} Kf6 {[%emt 0:00:28]} 39. Qa8 {[%emt 0:00:23]} Nd3 {[%emt 0:00:
00]} 40. Be4 {[%emt 0:01:28]} Kg7 {[%emt 0:03:52]} 41. Bxd3 {[%emt 0:30:55]}
cxd3 {[%emt 0:32:52]} 42. Qe8 {[%emt 0:00:00]} Qxd5 {[%emt 0:00:00]} 43. Ke1 {
[%emt 0:00:00]} Qd4 {[%emt 0:00:00]} 44. Kd2 {[%emt 0:00:53]} Qxb2+ {[%emt 0:
00:00]} 45. Kxd3 {[%emt 0:00:05]} Qxa3+ {[%emt 0:00:00]} 46. Kd4 {[%emt 0:00:
00]} Qb2+ {[%emt 0:00:00]} 47. Ke3 {[%emt 0:00:07]} a5 {[%emt 0:00:00]} 48. f4
{[%emt 0:01:46]} a4 {[%emt 0:00:00]} 0-1

[Event "44th Chess Olympiad Open 2022"]
[Site "Chennai"]
[Date "2022.07.31"]
[Round "3.32"]
[White "Cardoso Cardoso, Jose Gabriel"]
[Black "Tagelsir, Abubaker"]
[Result "1-0"]
[WhiteElo "2493"]
[BlackElo "2232"]
[Annotator "RC"]
[PlyCount "128"]
[EventDate "2022.??.??"]
[TimeControl "60"]

1. e4 {[%emt 0:00:02]} c5 {[%emt 0:01:01]} 2. Nf3 {[%emt 0:00:10]} e6 {[%emt 0:
00:00]} 3. d4 {[%emt 0:00:10]} cxd4 {[%emt 0:00:06]} 4. Nxd4 {[%emt 0:00:08]}
Nc6 {[%emt 0:00:03]} 5. Nc3 {[%emt 0:00:27]} Qc7 {[%emt 0:00:06]} 6. Be3 {
[%emt 0:00:37]} a6 {[%emt 0:02:10]} 7. Qf3 {[%emt 0:00:09]} Ne5 {[%emt 0:01:06]
} 8. Qg3 {[%emt 0:00:06]} b5 {[%emt 0:01:06]} 9. O-O-O {[%emt 0:08:31]} Bb7 {
[%emt 0:02:57]} 10. Bxb5 {[%emt 0:04:29]} axb5 {[%emt 0:24:36]} 11. Ndxb5 {
[%emt 0:00:08]} Qb8 {[%emt 0:00:06]} 12. Bb6 {[%emt 0:00:55]} f6 {[%emt 0:00:
00]} 13. Bc7 {[%emt 0:37:38]} Qc8 {[%emt 0:04:04]} 14. Bxe5 {[%emt 0:07:48]}
fxe5 {[%emt 0:00:00]} 15. Nd6+ {[%emt 0:07:54]} Bxd6 {[%emt 0:00:00]} 16. Qxg7
{[%emt 0:03:15]} Qc5 {[%emt 0:04:39]} 17. Rd3 {[%emt 0:10:42]} O-O-O {[%emt 0:
00:00]} 18. Qxh8 {[%emt 0:00:10]} Be7 {[%emt 0:01:53]} 19. Qg7 {[%emt 0:04:13]}
Qxf2 {[%emt 0:03:07]} 20. Qxe5 {[%emt 0:03:26]} Qxg2 {[%emt 0:06:16]} 21. Rhd1
{[%emt 0:00:35]} Qg5+ {[%emt 0:00:42]} 22. Qxg5 {[%emt 0:00:07]} Bxg5+ {
[%emt 0:00:06]} 23. Kb1 {[%emt 0:00:03]} Bc6 {[%emt 0:02:18]} 24. b4 {[%emt 0:
00:00]} Nf6 {[%emt 0:11:33]} 25. Rd4 {[%emt 0:02:00]} Be3 {[%emt 0:01:29]} 26.
Rc4 {[%emt 0:00:20]} Ng4 {[%emt 0:01:27]} 27. Nb5 {[%emt 0:04:27]} Bb6 {
[%emt 0:04:43]} 28. Nd4 {[%emt 0:00:54]} Ne3 {[%emt 0:02:36]} 29. Nxc6 {
[%emt 0:00:08]} Nxc4 {[%emt 0:00:34]} 30. Nxd8 {[%emt 0:00:02]} Bxd8 {[%emt 0:
00:00]} 31. a4 {[%emt 0:00:22]} Bg5 {[%emt 0:02:15]} 32. Ka2 {[%emt 0:01:27]}
Ne3 {[%emt 0:03:37]} 33. Rd3 {[%emt 0:00:38]} Bf4 {[%emt 0:00:38]} 34. Kb3 {
[%emt 0:00:21]} Ng4 {[%emt 0:00:33]} 35. h3 {[%emt 0:01:58]} Nf6 {[%emt 0:00:
00]} 36. Rd4 {[%emt 0:00:04]} Be5 {[%emt 0:00:33]} 37. Rc4+ {[%emt 0:00:02]}
Kb7 {[%emt 0:00:08]} 38. a5 {[%emt 0:00:41]} h5 {[%emt 0:04:59]} 39. b5 {
[%emt 0:00:37]} h4 {[%emt 0:00:23]} 40. Ra4 {[%emt 0:01:10]} Ka7 {[%emt 0:00:
00]} 41. a6 {[%emt 0:03:14]} Ne8 {[%emt 0:08:23]} 42. b6+ {[%emt 0:02:43]} Kxb6
{[%emt 0:00:08]} 43. a7 {[%emt 0:00:08]} Nc7 {[%emt 0:00:07]} 44. a8=Q {
[%emt 0:00:08]} Nxa8 {[%emt 0:00:07]} 45. Rxa8 {[%emt 0:00:06]} Kc5 {[%emt 0:
00:00]} 46. Ra4 {[%emt 0:01:45]} Bg3 {[%emt 0:00:36]} 47. Kc3 {[%emt 0:00:29]}
Kd6 {[%emt 0:00:26]} 48. Kd3 {[%emt 0:01:13]} Ke5 {[%emt 0:00:07]} 49. Ke3 {
[%emt 0:00:10]} Bf4+ {[%emt 0:01:18]} 50. Kf3 {[%emt 0:00:05]} Bg3 {[%emt 0:00:
00]} 51. Ra1 {[%emt 0:00:57]} d6 {[%emt 0:00:36]} 52. Ra4 {[%emt 0:04:21]} Bh2
{[%emt 0:02:07]} 53. c3 {[%emt 0:00:12]} Bg3 {[%emt 0:02:21]} 54. Ra5+ {
[%emt 0:00:15]} Kf6 {[%emt 0:00:05]} 55. c4 {[%emt 0:00:22]} Be1 {[%emt 0:00:
00]} 56. Rh5 {[%emt 0:00:14]} Kg6 {[%emt 0:00:14]} 57. Kg4 {[%emt 0:00:09]} Kf6
{[%emt 0:03:00]} 58. Rxh4 {[%emt 0:02:39]} Bxh4 {[%emt 0:01:59]} 59. Kxh4 {
[%emt 0:00:04]} Ke5 {[%emt 0:00:06]} 60. Kg5 {[%emt 0:00:04]} Kxe4 {[%emt 0:00:
00]} 61. h4 {[%emt 0:00:06]} d5 {[%emt 0:00:38]} 62. c5 {[%emt 0:00:11]} d4 {
[%emt 0:00:51]} 63. c6 {[%emt 0:00:05]} d3 {[%emt 0:00:02]} 64. c7 {[%emt 0:00:
00]} Kd5 {[%emt 0:00:03]} 1-0

[Event "44th Chess Olympiad Open 2022"]
[Site "Chennai"]
[Date "2022.07.31"]
[Round "3.32"]
[White "Sanchez, Sebastian Felipe"]
[Black "Hamid Mohammed"]
[Result "1-0"]
[WhiteElo "2440"]
[BlackElo "2116"]
[Annotator "RC"]
[PlyCount "75"]
[EventDate "2022.??.??"]
[TimeControl "60"]

1. d4 {[%emt 0:00:04]} e6 {[%emt 0:00:22]} 2. c4 {[%emt 0:03:16]} b6 {[%emt 0:
00:00]} 3. e4 {[%emt 0:00:48]} Bb4+ {[%emt 0:01:37]} 4. Bd2 {[%emt 0:00:08]}
Bxd2+ {[%emt 0:01:34]} 5. Qxd2 {[%emt 0:00:08]} Ne7 {[%emt 0:00:34]} 6. Nc3 {
[%emt 0:00:25]} d5 {[%emt 0:04:54]} 7. f3 {[%emt 0:10:03]} Ba6 {[%emt 0:05:20]}
8. b3 {[%emt 0:09:54]} O-O {[%emt 0:09:15]} 9. Rd1 {[%emt 0:00:47]} Nd7 {
[%emt 0:08:05]} 10. Nh3 {[%emt 0:06:06]} Re8 {[%emt 0:09:57]} 11. cxd5 {
[%emt 0:01:53]} Bxf1 {[%emt 0:00:16]} 12. dxe6 {[%emt 0:00:11]} fxe6 {[%emt 0:
00:00]} 13. Rxf1 {[%emt 0:02:04]} Ng6 {[%emt 0:03:05]} 14. Kf2 {[%emt 0:06:42]}
c5 {[%emt 0:05:13]} 15. d5 {[%emt 0:00:00]} e5 {[%emt 0:07:42]} 16. g3 {
[%emt 0:11:41]} Nf6 {[%emt 0:02:58]} 17. Kg2 {[%emt 0:01:45]} h6 {[%emt 0:00:
00]} 18. Nf2 {[%emt 0:02:24]} Qd6 {[%emt 0:02:51]} 19. Rc1 {[%emt 0:03:41]} Rf8
{[%emt 0:06:09]} 20. Nb5 {[%emt 0:04:25]} Qd7 {[%emt 0:00:39]} 21. a4 {[%emt 0:
00:00]} Nh5 {[%emt 0:04:22]} 22. Na3 {[%emt 0:07:07]} Rf7 {[%emt 0:00:41]} 23.
Nc4 {[%emt 0:00:36]} Raf8 {[%emt 0:00:51]} 24. Ng4 {[%emt 0:19:16]} Re8 {
[%emt 0:18:18]} 25. Qc3 {[%emt 0:00:00]} Qe7 {[%emt 0:00:24]} 26. Rcd1 {
[%emt 0:00:00]} Qg5 {[%emt 0:00:40]} 27. Nd6 {[%emt 0:01:38]} Ref8 {[%emt 0:00:
00]} 28. Nxf7 {[%emt 0:00:00]} Rxf7 {[%emt 0:01:05]} 29. d6 {[%emt 0:00:00]}
Rd7 {[%emt 0:02:43]} 30. b4 {[%emt 0:00:00]} cxb4 {[%emt 0:00:00]} 31. Qc8+ {
[%emt 0:00:00]} Rd8 32. Qc4+ {[%emt 0:00:00]} Kh8 {[%emt 0:00:00]} 33. Qxb4 {
[%emt 0:00:00]} Nhf4+ {[%emt 0:00:00]} 34. gxf4 {[%emt 0:00:00]} Nxf4+ {
[%emt 0:00:00]} 35. Kh1 {[%emt 0:00:00]} h5 {[%emt 0:00:00]} 36. Ne3 {[%emt 0:
00:00]} Nh3 {[%emt 0:00:00]} 37. Qd2 {[%emt 0:00:00]} Kh7 {[%emt 0:01:01]} 38.
Qg2 {[%emt 0:00:00]} 1-0

[Event "44th Chess Olympiad Open 2022"]
[Site "Chennai"]
[Date "2022.07.31"]
[Round "3.32"]
[White "Abdelazeez, Mohamed Abdalla"]
[Black "Avila Pavas, Santiago"]
[Result "0-1"]
[WhiteElo "2182"]
[BlackElo "2453"]
[Annotator "ChessBase"]
[PlyCount "70"]
[EventDate "2022.??.??"]
[TimeControl "60"]

1. Nf3 {[%emt 0:00:06]} d5 {[%emt 0:00:21]} 2. e3 {[%emt 0:00:07]} Nf6 {
[%emt 0:00:41]} 3. c4 {[%emt 0:00:14]} e6 {[%emt 0:00:13]} 4. Nc3 {[%emt 0:00:
00]} b6 {[%emt 0:02:04]} 5. b3 {[%emt 0:05:14]} Bb7 {[%emt 0:00:39]} 6. Bb2 {
[%emt 0:00:09]} Nbd7 {[%emt 0:00:07]} 7. Rc1 {[%emt 0:03:04]} a6 {[%emt 0:00:
00]} 8. a3 {[%emt 0:08:10]} Rc8 {[%emt 0:02:15]} 9. cxd5 {[%emt 0:14:35]} exd5
{[%emt 0:00:10]} 10. d4 {[%emt 0:00:11]} Bd6 {[%emt 0:02:41]} 11. Bd3 {[%emt 0:
00:00]} Qe7 {[%emt 0:01:51]} 12. a4 {[%emt 0:11:27]} O-O {[%emt 0:04:49]} 13.
O-O {[%emt 0:00:07]} Ne4 {[%emt 0:07:29]} 14. Qe2 {[%emt 0:01:47]} Ra8 {
[%emt 0:00:08]} 15. Qc2 {[%emt 0:01:29]} f5 {[%emt 0:02:56]} 16. Ne2 {[%emt 0:
00:00]} Rac8 {[%emt 0:16:57]} 17. Rfd1 {[%emt 0:13:26]} Rf6 {[%emt 0:16:48]}
18. Nf4 {[%emt 0:06:01]} g5 {[%emt 0:09:49]} 19. Bxa6 {[%emt 0:11:15]} Bxa6 {
[%emt 0:00:09]} 20. Nxd5 {[%emt 0:00:07]} Qe8 {[%emt 0:04:51]} 21. Nxf6+ {
[%emt 0:00:15]} Ndxf6 {[%emt 0:00:05]} 22. Ne5 {[%emt 0:01:30]} Nd5 {[%emt 0:
00:00]} 23. b4 {[%emt 0:06:18]} Qe6 {[%emt 0:14:21]} 24. b5 {[%emt 0:00:24]}
Bb7 {[%emt 0:00:21]} 25. Qc4 {[%emt 0:02:21]} Nef6 {[%emt 0:01:27]} 26. f3 {
[%emt 0:02:25]} Re8 {[%emt 0:00:17]} 27. Re1 {[%emt 0:01:03]} Kf8 {[%emt 0:00:
00]} 28. e4 {[%emt 0:00:32]} fxe4 {[%emt 0:00:14]} 29. fxe4 {[%emt 0:00:06]}
Nf4 {[%emt 0:00:22]} 30. d5 {[%emt 0:00:10]} Qc8 {[%emt 0:01:27]} 31. Nd3 {
[%emt 0:01:03]} Nxg2 {[%emt 0:02:17]} 32. Bxf6 {[%emt 0:00:54]} Nxe1 {[%emt 0:
00:00]} 33. Nxe1 {[%emt 0:06:18]} Qg4+ {[%emt 0:00:07]} 34. Ng2 {[%emt 0:00:50]
} Rxe4 {[%emt 0:00:06]} 35. Qd3 {[%emt 0:01:02]} Re2 {[%emt 0:00:21]} 0-1

[Event "44th Chess Olympiad Open 2022"]
[Site "Chennai"]
[Date "2022.07.31"]
[Round "3.32"]
[White "Abdelhakiem Abdellatief Nogda"]
[Black "Arenas, David"]
[Result "0-1"]
[WhiteElo "1960"]
[BlackElo "2426"]
[Annotator "RC"]
[PlyCount "46"]
[EventDate "2022.??.??"]
[TimeControl "60"]

1. e4 {[%emt 0:00:15]} c5 {[%emt 0:00:14]} 2. Nf3 {[%emt 0:00:09]} d6 {[%emt 0:
00:00]} 3. Nc3 {[%emt 0:00:21]} Nc6 {[%emt 0:02:25]} 4. d4 {[%emt 0:00:10]}
cxd4 {[%emt 0:00:11]} 5. Nxd4 {[%emt 0:00:09]} g6 {[%emt 0:00:37]} 6. Be3 {
[%emt 0:00:36]} Bg7 {[%emt 0:00:12]} 7. Qd2 {[%emt 0:00:54]} Nf6 {[%emt 0:00:
00]} 8. f3 {[%emt 0:00:18]} O-O {[%emt 0:00:19]} 9. O-O-O {[%emt 0:00:10]} d5 {
[%emt 0:00:31]} 10. Nxc6 {[%emt 0:06:49]} bxc6 {[%emt 0:00:05]} 11. e5 {
[%emt 0:00:17]} Nd7 {[%emt 0:03:33]} 12. f4 {[%emt 0:00:24]} e6 {[%emt 0:00:09]
} 13. Na4 {[%emt 0:02:28]} f6 {[%emt 0:00:45]} 14. Qc3 {[%emt 0:02:28]} fxe5 {
[%emt 0:31:53]} 15. Qxc6 {[%emt 0:03:58]} exf4 {[%emt 0:00:08]} 16. Qxe6+ {
[%emt 0:01:30]} Kh8 {[%emt 0:01:16]} 17. Qxd5 {[%emt 0:02:28]} fxe3 {[%emt 0:
00:00]} 18. Qxa8 {[%emt 0:02:31]} Qa5 {[%emt 0:05:41]} 19. Qc6 {[%emt 0:06:48]}
Nb6 {[%emt 0:07:28]} 20. Bb5 {[%emt 0:09:06]} e2 {[%emt 0:01:51]} 21. Rd2 {
[%emt 0:07:34]} Bd7 {[%emt 0:01:05]} 22. Rxd7 {[%emt 0:10:43]} e1=Q+ {[%emt 0:
00:00]} 23. Rd1 {[%emt 0:00:10]} Qad2+ {[%emt 0:00:46]} 0-1

[Event "44th Chess Olympiad Open 2022"]
[Site "Chennai"]
[Date "2022.07.31"]
[Round "3.33"]
[White "Barcenilla, Rogelio"]
[Black "Isaakidis, Alexandros"]
[Result "1-0"]
[WhiteElo "2463"]
[BlackElo "2165"]
[Annotator "RC"]
[PlyCount "67"]
[EventDate "2022.??.??"]
[TimeControl "60"]

1. c4 {[%emt 0:00:03]} g6 {[%emt 0:00:06]} 2. Nc3 {[%emt 0:00:06]} Bg7 {
[%emt 0:00:04]} 3. g3 {[%emt 0:00:05]} e5 {[%emt 0:00:06]} 4. Bg2 {[%emt 0:00:
00]} Nc6 {[%emt 0:00:05]} 5. e4 {[%emt 0:00:32]} d6 {[%emt 0:00:13]} 6. d3 {
[%emt 0:00:32]} f5 {[%emt 0:00:10]} 7. Nge2 {[%emt 0:00:17]} Nf6 {[%emt 0:00:
00]} 8. O-O {[%emt 0:01:08]} O-O {[%emt 0:00:10]} 9. Nd5 {[%emt 0:00:43]} Be6 {
[%emt 0:00:17]} 10. Bg5 {[%emt 0:01:08]} Qd7 {[%emt 0:00:09]} 11. Qd2 {[%emt 0:
00:00]} Nh5 {[%emt 0:00:33]} 12. f3 {[%emt 0:02:43]} f4 {[%emt 0:09:37]} 13.
gxf4 {[%emt 0:03:03]} Nd4 {[%emt 0:10:10]} 14. Nxd4 {[%emt 0:36:59]} exd4 {
[%emt 0:00:10]} 15. f5 {[%emt 0:04:33]} gxf5 {[%emt 0:01:55]} 16. f4 {[%emt 0:
00:00]} Rae8 {[%emt 0:11:49]} 17. Bf3 {[%emt 0:07:06]} Nf6 {[%emt 0:02:53]} 18.
Kh1 {[%emt 0:01:43]} Kh8 {[%emt 0:19:21]} 19. Rae1 {[%emt 0:06:24]} Ng8 {
[%emt 0:09:35]} 20. b3 {[%emt 0:04:14]} c6 {[%emt 0:03:12]} 21. Nb4 {[%emt 0:
00:00]} fxe4 {[%emt 0:05:32]} 22. dxe4 {[%emt 0:00:29]} Bg4 {[%emt 0:01:01]}
23. Bg2 {[%emt 0:03:57]} Bh3 {[%emt 0:00:46]} 24. Nd3 {[%emt 0:01:44]} h6 {
[%emt 0:02:05]} 25. Bh4 {[%emt 0:00:28]} Qg4 {[%emt 0:00:29]} 26. Bg3 {[%emt 0:
00:00]} Bxg2+ {[%emt 0:00:15]} 27. Qxg2 {[%emt 0:00:08]} c5 {[%emt 0:05:50]}
28. f5 {[%emt 0:00:52]} Rf6 {[%emt 0:04:27]} 29. h3 {[%emt 0:02:30]} Qg5 {
[%emt 0:00:40]} 30. Qh2 {[%emt 0:00:54]} Bf8 {[%emt 0:01:29]} 31. Rg1 {[%emt 0:
00:00]} Qh5 {[%emt 0:00:59]} 32. Qg2 {[%emt 0:00:15]} Re7 {[%emt 0:01:43]} 33.
Nf4 {[%emt 0:00:36]} Qg5 {[%emt 0:01:21]} 34. Qf2 {[%emt 0:00:23]} 1-0

[Event "44th Chess Olympiad Open 2022"]
[Site "Chennai"]
[Date "2022.07.31"]
[Round "3.33"]
[White "Laylo, Darwin"]
[Black "Florentiades, Michalis"]
[Result "1-0"]
[WhiteElo "2432"]
[BlackElo "1974"]
[Annotator "RC"]
[PlyCount "79"]
[EventDate "2022.??.??"]
[TimeControl "60"]

1. c4 {[%emt 0:00:04]} c6 {[%emt 0:00:13]} 2. Nf3 {[%emt 0:01:39]} d5 {[%emt 0:
00:00]} 3. e3 {[%emt 0:00:10]} Nf6 {[%emt 0:00:25]} 4. Nc3 {[%emt 0:00:05]} a6
{[%emt 0:02:14]} 5. d4 {[%emt 0:01:00]} Bf5 {[%emt 0:00:46]} 6. Be2 {[%emt 0:
00:00]} e6 {[%emt 0:03:24]} 7. Nh4 {[%emt 0:01:46]} Be4 {[%emt 0:01:49]} 8. f3
{[%emt 0:01:34]} Bg6 {[%emt 0:00:18]} 9. g3 {[%emt 0:09:13]} Be7 {[%emt 0:00:
00]} 10. O-O {[%emt 0:06:21]} O-O {[%emt 0:06:07]} 11. Nxg6 {[%emt 0:07:34]}
hxg6 {[%emt 0:00:07]} 12. a3 {[%emt 0:01:17]} dxc4 {[%emt 0:07:50]} 13. Bxc4 {
[%emt 0:01:19]} c5 {[%emt 0:03:56]} 14. d5 {[%emt 0:02:41]} exd5 {[%emt 0:00:
00]} 15. Nxd5 {[%emt 0:00:20]} Nxd5 {[%emt 0:00:33]} 16. Bxd5 {[%emt 0:01:52]}
Qb6 {[%emt 0:07:08]} 17. Qa4 {[%emt 0:02:23]} Nc6 {[%emt 0:08:02]} 18. Rb1 {
[%emt 0:03:14]} Rac8 {[%emt 0:06:31]} 19. Qc2 {[%emt 0:07:06]} Rcd8 {[%emt 0:
00:00]} 20. Ba2 {[%emt 0:02:44]} Ne5 {[%emt 0:07:56]} 21. f4 {[%emt 0:07:22]}
Ng4 {[%emt 0:01:59]} 22. h3 {[%emt 0:04:26]} Nh6 {[%emt 0:00:33]} 23. g4 {
[%emt 0:00:31]} Qd6 {[%emt 0:01:18]} 24. e4 {[%emt 0:01:11]} Kh8 {[%emt 0:00:
00]} 25. g5 {[%emt 0:01:30]} Qd4+ {[%emt 0:01:51]} 26. Kh1 {[%emt 0:05:21]} Ng8
{[%emt 0:01:03]} 27. Bd5 {[%emt 0:00:25]} Rxd5 {[%emt 0:04:35]} 28. exd5 {
[%emt 0:00:01]} Qxd5+ {[%emt 0:00:17]} 29. Qg2 {[%emt 0:00:06]} Qd3 {[%emt 0:
00:00]} 30. Bd2 {[%emt 0:00:25]} Bd8 {[%emt 0:01:38]} 31. Rbd1 {[%emt 0:01:17]}
Qc4 {[%emt 0:01:43]} 32. f5 {[%emt 0:01:40]} Ne7 {[%emt 0:02:37]} 33. f6 {
[%emt 0:03:37]} Nf5 {[%emt 0:01:26]} 34. Bc3 {[%emt 0:03:19]} Re8 {[%emt 0:00:
00]} 35. Rfe1 {[%emt 0:05:08]} Rxe1+ {[%emt 0:02:13]} 36. Rxe1 {[%emt 0:00:01]}
Bc7 {[%emt 0:00:31]} 37. fxg7+ {[%emt 0:00:27]} Kh7 {[%emt 0:00:49]} 38. g8=Q+
{[%emt 0:00:30]} Kxg8 {[%emt 0:00:08]} 39. Re8+ {[%emt 0:00:09]} Kh7 {[%emt 0:
00:00]} 40. Rh8# {[%emt 0:00:03]} 1-0

[Event "44th Chess Olympiad Open 2022"]
[Site "Chennai"]
[Date "2022.07.31"]
[Round "3.33"]
[White "Michaelides, Konstantinos"]
[Black "Paragua, Mark"]
[Result "1-0"]
[WhiteElo "2300"]
[BlackElo "2461"]
[Annotator "RC"]
[PlyCount "83"]
[EventDate "2022.??.??"]
[TimeControl "60"]

1. d4 {[%emt 0:00:06]} d5 {[%emt 0:00:25]} 2. c4 {[%emt 0:00:12]} e6 {[%emt 0:
00:00]} 3. Nf3 {[%emt 0:00:19]} Nf6 {[%emt 0:00:30]} 4. g3 {[%emt 0:00:19]}
dxc4 {[%emt 0:01:23]} 5. Bg2 {[%emt 0:00:07]} Bd7 {[%emt 0:01:39]} 6. Nbd2 {
[%emt 0:00:27]} Bc6 {[%emt 0:04:59]} 7. Nxc4 {[%emt 0:01:21]} Bb4+ {[%emt 0:00:
00]} 8. Bd2 {[%emt 0:03:56]} a5 {[%emt 0:09:38]} 9. O-O {[%emt 0:06:56]} O-O {
[%emt 0:01:38]} 10. Bg5 {[%emt 0:03:49]} Nbd7 {[%emt 0:02:55]} 11. a3 {[%emt 0:
00:00]} Be7 {[%emt 0:00:21]} 12. Rc1 {[%emt 0:01:28]} h6 {[%emt 0:06:17]} 13.
Bxf6 {[%emt 0:00:58]} Nxf6 {[%emt 0:00:34]} 14. Qd2 {[%emt 0:08:22]} a4 {
[%emt 0:07:56]} 15. Rfd1 {[%emt 0:02:49]} Bd5 {[%emt 0:04:46]} 16. Nfe5 {
[%emt 0:06:41]} c6 {[%emt 0:12:25]} 17. Qc2 {[%emt 0:06:40]} Bxg2 {[%emt 0:00:
00]} 18. Kxg2 {[%emt 0:00:02]} Qd5+ {[%emt 0:00:37]} 19. f3 {[%emt 0:03:54]}
Qb5 {[%emt 0:00:09]} 20. Rd3 {[%emt 0:02:51]} c5 {[%emt 0:04:27]} 21. dxc5 {
[%emt 0:06:25]} Qxc5 {[%emt 0:00:07]} 22. Nd7 {[%emt 0:06:03]} Nxd7 {[%emt 0:
00:00]} 23. Rxd7 {[%emt 0:00:02]} Rfc8 {[%emt 0:04:48]} 24. Qe4 {[%emt 0:10:15]
} b5 {[%emt 0:08:09]} 25. Ne5 {[%emt 0:04:30]} Qxc1 {[%emt 0:01:35]} 26. Rxe7 {
[%emt 0:00:06]} Qc2 {[%emt 0:00:10]} 27. Re8+ {[%emt 0:00:12]} Rxe8 {[%emt 0:
00:00]} 28. Qxc2 {[%emt 0:00:05]} Rac8 {[%emt 0:01:17]} 29. Qe4 {[%emt 0:02:29]
} Rc7 {[%emt 0:02:20]} 30. Qb4 {[%emt 0:02:12]} Rd8 {[%emt 0:05:51]} 31. Nd3 {
[%emt 0:03:38]} Rd5 {[%emt 0:00:00]} 32. Kf2 {[%emt 0:01:48]} g5 {[%emt 0:00:
00]} 33. Qa5 {[%emt 0:04:57]} Rc4 {[%emt 0:00:00]} 34. Qa8+ {[%emt 0:00:20]}
Kg7 {[%emt 0:00:00]} 35. Qb8 {[%emt 0:00:55]} h5 {[%emt 0:02:37]} 36. h4 {
[%emt 0:01:39]} g4 {[%emt 0:07:28]} 37. f4 {[%emt 0:01:25]} Re4 {[%emt 0:04:28]
} 38. Qb7 {[%emt 0:00:34]} Kg6 {[%emt 0:01:55]} 39. Nb4 {[%emt 0:01:04]} Rdd4 {
[%emt 0:00:30]} 40. Nc6 {[%emt 0:00:16]} Rd2 {[%emt 0:00:32]} 41. Ne7+ {
[%emt 0:30:15]} Kf6 {[%emt 0:30:07]} 42. Qxe4 {[%emt 0:00:09]} 1-0

[Event "44th Chess Olympiad Open 2022"]
[Site "Chennai"]
[Date "2022.07.31"]
[Round "3.33"]
[White "Damianou, Ioannis"]
[Black "Gomez, John Paul"]
[Result "0-1"]
[WhiteElo "2153"]
[BlackElo "2451"]
[Annotator "ChessBase"]
[PlyCount "80"]
[EventDate "2022.??.??"]
[TimeControl "60"]

1. c4 {[%emt 0:00:05]} c6 {[%emt 0:00:14]} 2. Nf3 {[%emt 0:00:14]} d5 {[%emt 0:
00:00]} 3. e3 {[%emt 0:00:05]} Nf6 {[%emt 0:00:09]} 4. b3 {[%emt 0:00:19]} Bg4
{[%emt 0:00:33]} 5. Bb2 {[%emt 0:00:28]} Nbd7 {[%emt 0:00:30]} 6. Be2 {[%emt 0:
00:00]} e6 {[%emt 0:00:10]} 7. Ne5 {[%emt 0:08:18]} Bxe2 {[%emt 0:01:00]} 8.
Qxe2 {[%emt 0:00:04]} Nxe5 {[%emt 0:00:30]} 9. Bxe5 {[%emt 0:00:06]} Bd6 {
[%emt 0:02:08]} 10. Bxd6 {[%emt 0:03:24]} Qxd6 {[%emt 0:00:09]} 11. d4 {
[%emt 0:02:05]} O-O {[%emt 0:02:35]} 12. O-O {[%emt 0:00:24]} e5 {[%emt 0:00:
00]} 13. dxe5 {[%emt 0:03:52]} Qxe5 {[%emt 0:00:07]} 14. Nd2 {[%emt 0:00:04]}
Rfe8 {[%emt 0:00:58]} 15. Nf3 {[%emt 0:13:12]} Qe7 {[%emt 0:03:31]} 16. Rac1 {
[%emt 0:11:43]} Rad8 {[%emt 0:05:42]} 17. Rfd1 {[%emt 0:01:58]} c5 {[%emt 0:00:
00]} 18. cxd5 {[%emt 0:10:11]} Nxd5 {[%emt 0:00:40]} 19. Qc4 {[%emt 0:03:26]}
Nf6 {[%emt 0:00:49]} 20. h3 {[%emt 0:00:27]} b6 {[%emt 0:00:59]} 21. Ne1 {
[%emt 0:03:29]} Ne4 {[%emt 0:10:18]} 22. Nd3 {[%emt 0:05:26]} Rd6 {[%emt 0:00:
00]} 23. b4 {[%emt 0:09:41]} Red8 {[%emt 0:20:24]} 24. bxc5 {[%emt 0:03:46]}
bxc5 {[%emt 0:01:48]} 25. Qc2 {[%emt 0:01:49]} h6 {[%emt 0:02:29]} 26. Nf4 {
[%emt 0:03:06]} Rd2 {[%emt 0:06:13]} 27. Rxd2 {[%emt 0:03:28]} Rxd2 {[%emt 0:
00:00]} 28. Qc4 {[%emt 0:01:33]} Rxf2 {[%emt 0:04:49]} 29. Rb1 {[%emt 0:03:32]}
Rd2 {[%emt 0:00:31]} 30. Qa4 {[%emt 0:03:30]} Nc3 {[%emt 0:05:23]} 31. Rb8+ {
[%emt 0:00:06]} Kh7 {[%emt 0:00:24]} 32. Re8 {[%emt 0:01:41]} Qd7 {[%emt 0:00:
00]} 33. Qxd7 {[%emt 0:00:17]} Rxd7 {[%emt 0:00:05]} 34. Rc8 {[%emt 0:00:50]}
Ne4 {[%emt 0:00:32]} 35. Kf1 {[%emt 0:01:21]} Rd1+ {[%emt 0:05:11]} 36. Ke2 {
[%emt 0:00:06]} Rd2+ {[%emt 0:00:06]} 37. Kf1 {[%emt 0:02:24]} Rxa2 {[%emt 0:
00:00]} 38. Rc7 {[%emt 0:00:19]} c4 {[%emt 0:02:03]} 39. Rxf7 {[%emt 0:00:32]}
c3 {[%emt 0:00:39]} 40. Rc7 {[%emt 0:00:44]} Rd2 {[%emt 0:01:24]} 0-1